fUST/lending_fUST_20250309
["ID","MTS","AMOUNT","RATE_DAILY","PERIOD"]
[355712795,1741495849386,-513.87552151,0.00054794,120]
[355712796,1741495849395,-242.80846367,0.00054794,120]
[355712797,1741495849405,-500.0,0.00054794,2]
[355712798,1741495849415,-500.0,0.00054794,120]
[355712799,1741495849424,-9999.0,0.00054794,2]
[355712800,1741495849434,-500.0,0.00054794,2]
[355712801,1741495849443,-500.0,0.00054794,120]
[355712802,1741495849454,-500.0,0.00054794,120]
[355712803,1741495849464,-500.0,0.00054794,2]
[355712804,1741495849473,-785.74,0.00054794,120]
[355712805,1741495849483,-785.74,0.00054794,120]
[355712806,1741495849493,-785.74,0.00054794,120]
[355712807,1741495849502,-785.74,0.00054794,120]
[355712808,1741495849512,-500.0,0.00054794,120]
[355712809,1741495849521,-785.74,0.00054794,120]
[355712810,1741495849532,-785.74,0.00054794,120]
[355712811,1741495849541,-785.74,0.00054794,120]
[355712812,1741495849551,-785.74,0.00054794,120]
[355712813,1741495849561,-785.74,0.00054794,120]
[355712814,1741495849570,-785.74,0.00054794,120]
[355712815,1741495849580,-1000.85066351,0.00054794,2]
[355712816,1741495849595,-785.74,0.00054794,120]
[355712817,1741495849605,-785.74,0.00054794,120]
[355712818,1741495849615,-785.74,0.00054794,120]
[355712819,1741495849625,-785.74,0.00054794,120]
[355712820,1741495849635,-785.74,0.00054794,120]
[355712821,1741495849644,-500.0,0.00054794,120]
[355712822,1741495849654,-785.74,0.00054794,120]
[355712823,1741495849664,-785.74,0.00054794,120]
[355712824,1741495849673,-785.74,0.00054794,120]
[355712825,1741495849683,-785.74,0.00054794,120]
[355712826,1741495849692,-500.0,0.00054794,120]
[355712827,1741495849702,-785.74,0.00054794,120]
[355712828,1741495849711,-785.74,0.00054794,120]
[355712829,1741495849720,-785.74,0.00054794,120]
[355712830,1741495849729,-785.74,0.00054794,120]
[355712831,1741495849739,-500.0,0.00054794,2]
[355712832,1741495849748,-785.74276309,0.00054794,120]
[355712833,1741495849758,-1500.0,0.00054794,120]
[355712834,1741495849767,-500.0,0.00054794,120]
[355712835,1741495849776,-254.78819745,0.00054795,15]
[355712836,1741495849786,-300.0,0.00054795,15]
[355712837,1741495849796,-700.0,0.00054807,60]
[355712838,1741495849805,-200.0,0.00054848,120]
[355712839,1741495849815,-500.0,0.00054875,60]
[355712840,1741495849824,-500.0,0.00054892,60]
[355712841,1741495849834,-4142.35661518,0.00054898,120]
[355712842,1741495849843,-160.0,0.00054909,7]
[355712843,1741495849853,-209.28658938,0.00054909,5]
[355712844,1741495849863,-1000.0,0.00054952,15]
[355712845,1741495849873,-443305.84235691,0.00055,90]
[355712846,1741495849883,-10000.0,0.00055,30]
[355712847,1741495849892,-157.0,0.00055,120]
[355712848,1741495849902,-200.0,0.00055022,120]
[355712849,1741495849912,-528.69865855,0.00055068,120]
[355712850,1741495849921,-500.0,0.00055068,30]
[355712851,1741495849931,-528.77343534,0.00055068,120]
[355712852,1741495849941,-500.0,0.00055068,120]
[355712853,1741495849951,-944.84,0.00055068,120]
[355712854,1741495849961,-525.92059157,0.00055068,120]
[355712855,1741495849971,-500.0,0.00055068,120]
[355712856,1741495849980,-500.0,0.00055068,120]
[355712857,1741495849990,-510.38148173,0.00055068,120]
[355712858,1741495849999,-514.70325928,0.00055068,120]
[355712859,1741495850009,-500.0,0.00055068,120]
[355712860,1741495850019,-500.0,0.00055068,120]
[355712861,1741495850028,-500.0,0.00055068,120]
[355712862,1741495850038,-500.0,0.00055068,120]
[355712863,1741495850047,-506.18073613,0.00055068,120]
[355712864,1741495850056,-523.84450798,0.00055068,120]
[355712865,1741495850066,-500.0,0.00055068,120]
[355712866,1741495850075,-500.0,0.00055068,120]
[355712867,1741495850085,-501.66697604,0.00055068,120]
[355712868,1741495850094,-705.23,0.00055068,120]
[355712869,1741495850103,-500.0,0.00055068,120]
[355712870,1741495850113,-500.0,0.00055068,120]
[355712871,1741495850122,-500.0,0.00055068,120]
[355712872,1741495850131,-500.0,0.00055068,120]
[355712873,1741495850141,-500.0,0.00055068,120]
[355712874,1741495850150,-1651.32,0.00055068,120]
[355712875,1741495850159,-500.0,0.00055068,120]
[355712876,1741495850168,-500.0,0.00055068,120]
[355712877,1741495850178,-500.0,0.00055068,120]
[355712878,1741495850188,-500.0,0.00055068,120]
[355712879,1741495850200,-500.0,0.00055068,120]
[355712880,1741495850209,-559.56110455,0.00055068,2]
[355712881,1741495850219,-830.43,0.00055068,120]
[355712882,1741495850228,-500.0,0.00055068,120]
[355712883,1741495850240,-500.0,0.00055068,120]
[355712884,1741495850250,-500.0,0.00055068,120]
[355712885,1741495850259,-500.0,0.00055068,120]
[355712886,1741495850268,-5932.19,0.00055068,7]
[355712887,1741495850279,-500.0,0.00055068,120]
[355712888,1741495850289,-513.164711,0.00055068,120]
[355712889,1741495850298,-5676.58,0.00055068,120]
[355712890,1741495850307,-154.88944009,0.00055068,30]
[355712891,1741495850317,-500.0,0.00055068,120]
[355712892,1741495850326,-505.57759622,0.00055068,120]
[355712893,1741495850415,-1010.55,0.00055068,120]
[355712894,1741495850425,-640.70189384,0.00055068,7]
[355712895,1741495850434,-2113.03,0.00055068,120]
[355712896,1741495850444,-333.66667592,0.00055068,120]
[355712897,1741495850454,-500.0,0.00055068,120]
[355712898,1741495850464,-519.87508924,0.00055068,120]
[355712899,1741495850473,-500.0,0.00055068,120]
[355712900,1741495850483,-500.0,0.00055068,120]
[355712901,1741495850492,-500.0,0.00055068,120]
[355712902,1741495850502,-500.0,0.00055068,120]
[355712903,1741495850511,-500.0,0.00055068,120]
[355712904,1741495850520,-500.0,0.00055068,120]
[355712905,1741495850530,-500.0,0.00055068,2]
[355712906,1741495850539,-500.0,0.00055068,120]
[355712907,1741495850548,-9999.0,0.00055068,2]
[355712908,1741495850559,-501.45613973,0.00055068,2]
[355712909,1741495850568,-500.0,0.00055068,120]
[355712910,1741495850577,-500.0,0.00055068,120]
[355712911,1741495850587,-500.0,0.00055068,2]
[355712912,1741495850596,-500.0,0.00055068,120]
[355712913,1741495850606,-500.0,0.00055068,120]
[355712914,1741495850615,-500.0,0.00055068,120]
[355712915,1741495850625,-500.0,0.00055068,2]
[355712916,1741495850635,-1500.0,0.00055068,120]
[355712917,1741495850644,-200.0,0.00055076,120]
[355712918,1741495850653,-500.0,0.00055164,120]
[355712919,1741495850663,-500.0,0.00055177,120]
[355712920,1741495850672,-1000.0,0.0005518,120]
[355712921,1741495850682,-700.0,0.00055182,120]
[355712922,1741495850692,-700.0,0.00055198,120]
[355712923,1741495850701,-199.71988,0.00055342,30]
[355712924,1741495850711,-500.0,0.00055342,120]
[355712925,1741495850720,-944.84,0.00055342,120]
[355712926,1741495850730,-500.0,0.00055342,120]
[355712927,1741495850739,-598.16331308,0.00055342,120]
[355712928,1741495850748,-377.87795294,0.00055342,120]
[355712929,1741495850759,-502.15973361,0.00055342,120]
[355712930,1741495850769,-547.47076171,0.00055342,120]
[355712931,1741495850779,-500.0,0.00055342,120]
[355712932,1741495850788,-500.0,0.00055342,120]
[355712933,1741495850797,-500.0,0.00055342,120]
[355712934,1741495850807,-705.23,0.00055342,120]
[355712935,1741495850816,-500.0,0.00055342,120]
[355712936,1741495850826,-500.0,0.00055342,120]
[355712937,1741495850836,-500.0,0.00055342,120]
[355712938,1741495850845,-500.0,0.00055342,120]
[355712939,1741495850855,-183.58434733,0.00055342,120]
[355712940,1741495850865,-1651.32,0.00055342,120]
[355712941,1741495850875,-500.0,0.00055342,120]
[355712942,1741495850883,-518.11984305,0.00055342,120]
[355712943,1741495850893,-500.0,0.00055342,120]
[355712944,1741495850903,-500.0,0.00055342,120]
[355712945,1741495850913,-500.0,0.00055342,120]
[355712946,1741495850923,-830.43,0.00055342,120]
[355712947,1741495850932,-500.0,0.00055342,120]
[355712948,1741495850942,-500.0,0.00055342,120]
[355712949,1741495850951,-500.0,0.00055342,120]
[355712950,1741495850960,-500.0,0.00055342,120]
[355712951,1741495850970,-5932.19,0.00055342,7]
[355712952,1741495850979,-500.0,0.00055342,120]
[355712953,1741495850989,-5676.58,0.00055342,120]
[355712954,1741495850999,-500.0,0.00055342,120]
[355712955,1741495851009,-1010.55,0.00055342,120]
[355712956,1741495851018,-2113.03,0.00055342,120]
[355712957,1741495851028,-500.0,0.00055342,120]
[355712958,1741495851038,-500.0,0.00055342,120]
[355712959,1741495851047,-510.66308662,0.00055342,120]
[355712960,1741495851056,-558.53230866,0.00055342,120]
[355712961,1741495851066,-500.0,0.00055342,120]
[355712962,1741495851075,-500.0,0.00055342,120]
[355712963,1741495851084,-500.0,0.00055342,120]
[355712964,1741495851094,-500.0,0.00055342,2]
[355712965,1741495851103,-500.0,0.00055342,120]
[355712966,1741495851112,-9999.0,0.00055342,2]
[355712967,1741495851122,-500.0,0.00055342,120]
[355712968,1741495851132,-500.0,0.00055342,120]
[355712969,1741495851141,-500.0,0.00055342,2]
[355712970,1741495851151,-500.0,0.00055342,120]
[355712971,1741495851161,-500.0,0.00055342,120]
[355712972,1741495851172,-500.0,0.00055342,120]
[355712973,1741495851182,-1500.0,0.00055342,120]
[355712974,1741495851191,-204.49061558,0.00055342,15]
[355712975,1741495851204,-200.0,0.00055343,120]
[355712976,1741495851213,-324.2,0.00055378,30]
[355712977,1741495851223,-500.0,0.00055425,120]
[355712978,1741495851233,-500.0,0.00055438,120]
[355712979,1741495851243,-300.0,0.000555,30]
[355712980,1741495851253,-500.0,0.00055526,120]
[355712981,1741495851262,-200.0,0.00055541,120]
[355712982,1741495851272,-500.0,0.00055572,120]
[355712983,1741495851281,-500.0,0.00055616,120]
[355712984,1741495851292,-944.84,0.00055616,120]
[355712985,1741495851301,-500.0,0.00055616,120]
[355712986,1741495851311,-502.86521533,0.00055616,120]
[355712987,1741495851320,-500.0,0.00055616,120]
[355712988,1741495851329,-500.0,0.00055616,120]
[355712989,1741495851338,-705.23,0.00055616,120]
[355712990,1741495851348,-500.0,0.00055616,120]
[355712991,1741495851357,-500.0,0.00055616,120]
[355712992,1741495851367,-500.0,0.00055616,120]
[355712993,1741495851376,-500.0,0.00055616,120]
[355712994,1741495851386,-1651.32,0.00055616,120]
[355712995,1741495851396,-569.91231845,0.00055616,120]
[355712996,1741495851405,-500.0,0.00055616,120]
[355712997,1741495851415,-563.23367181,0.00055616,120]
[355712998,1741495851424,-830.43,0.00055616,120]
[355712999,1741495851433,-500.0,0.00055616,120]
[355713000,1741495851443,-500.0,0.00055616,120]
[355713001,1741495851452,-226.88850345,0.00055616,120]
[355713002,1741495851462,-500.0,0.00055616,120]
[355713003,1741495851471,-5932.19,0.00055616,7]
[355713004,1741495851482,-500.0,0.00055616,120]
[355713005,1741495851492,-5676.58,0.00055616,120]
[355713006,1741495851502,-500.0,0.00055616,120]
[355713007,1741495851512,-1010.55,0.00055616,120]
[355713008,1741495851522,-2113.03,0.00055616,120]
[355713009,1741495851531,-500.0,0.00055616,120]
[355713010,1741495851541,-500.0,0.00055616,120]
[355713011,1741495851550,-500.0,0.00055616,120]
[355713012,1741495851559,-500.0,0.00055616,120]
[355713013,1741495851569,-500.0,0.00055616,120]
[355713014,1741495851578,-500.0,0.00055616,2]
[355713015,1741495851588,-500.0,0.00055616,120]
[355713016,1741495851597,-601.06503065,0.00055616,2]
[355713017,1741495851607,-500.0,0.00055616,120]
[355713018,1741495851616,-500.0,0.00055616,120]
[355713019,1741495851625,-500.0,0.00055616,2]
[355713020,1741495851634,-500.0,0.00055616,120]
[355713021,1741495851644,-500.0,0.00055616,120]
[355713022,1741495851653,-500.0,0.00055616,120]
[355713023,1741495851663,-1500.0,0.00055616,120]
[355713024,1741495851672,-700.0,0.00055637,120]
[355713025,1741495851681,-700.0,0.00055665,120]
[355713026,1741495851690,-200.0,0.0005573,120]
[355713027,1741495851699,-832.69439305,0.00055731,120]
[355713028,1741495851708,-200.0,0.00055738,120]
[355713029,1741495851717,-200.0,0.00055763,120]
[355713030,1741495851726,-700.0,0.00055813,120]
[355713031,1741495851735,-500.0,0.00055827,120]
[355713032,1741495851744,-500.0,0.0005589,120]
[355713033,1741495851753,-944.84,0.0005589,120]
[355713034,1741495851762,-243.315573,0.0005589,120]
[355713035,1741495851771,-243.315564,0.0005589,120]
[355713036,1741495851781,-500.0,0.0005589,120]
[355713037,1741495851790,-500.0,0.0005589,120]
[355713038,1741495851800,-500.0,0.0005589,120]
[355713039,1741495851809,-705.23,0.0005589,120]
[355713040,1741495851819,-500.0,0.0005589,120]
[355713041,1741495851828,-573.36367124,0.0005589,120]
[355713042,1741495851837,-500.0,0.0005589,120]
[355713043,1741495851924,-500.0,0.0005589,120]
[355713044,1741495851935,-1651.32,0.0005589,120]
[355713045,1741495851945,-500.0,0.0005589,120]
[355713046,1741495851955,-830.43,0.0005589,120]
[355713047,1741495851964,-500.0,0.0005589,120]
[355713048,1741495851974,-500.0,0.0005589,120]
[355713049,1741495851983,-513.70118828,0.0005589,120]
[355713050,1741495851992,-5932.19,0.0005589,7]
[355713051,1741495852002,-500.0,0.0005589,120]
[355713052,1741495852012,-5676.58,0.0005589,120]
[355713053,1741495852021,-500.0,0.0005589,120]
[355713054,1741495852031,-1010.55,0.0005589,120]
[355713055,1741495852040,-2113.03,0.0005589,120]
[355713056,1741495852050,-501.72894245,0.0005589,120]
[355713057,1741495852059,-500.0,0.0005589,120]
[355713058,1741495852069,-500.0,0.0005589,120]
[355713059,1741495852079,-500.0,0.0005589,120]
[355713060,1741495852088,-500.0,0.0005589,120]
[355713061,1741495852097,-500.0,0.0005589,2]
[355713062,1741495852106,-548.09991605,0.0005589,120]
[355713063,1741495852116,-500.0,0.0005589,120]
[355713064,1741495852125,-500.0,0.0005589,120]
[355713065,1741495852135,-500.0,0.0005589,2]
[355713066,1741495852145,-500.0,0.0005589,120]
[355713067,1741495852155,-500.0,0.0005589,120]
[355713068,1741495852164,-500.0,0.0005589,120]
[355713069,1741495852174,-1500.0,0.0005589,120]
[355713070,1741495852184,-700.0,0.00055952,120]
[355713071,1741495852195,-200.0,0.00055967,120]
[355713072,1741495852206,-500.0,0.00055986,120]
[355713073,1741495852216,-413.91460277,0.00056,60]
[355713074,1741495852225,-20000.0,0.00056,60]
[355713075,1741495852235,-1000.0,0.00056,120]
[355713076,1741495852246,-1296.0,0.00056,120]
[355713077,1741495852255,-160.0,0.00056,7]
[355713078,1741495852265,-814.0,0.00056,120]
[355713079,1741495852275,-700.0,0.00056037,120]
[355713080,1741495852284,-200.0,0.00056094,120]
[355713081,1741495852293,-22816.01571646,0.00056113,30]
[355713082,1741495852303,-500.0,0.00056126,120]
[355713083,1741495852312,-734.2256583,0.0005615,120]
[355713084,1741495852322,-501.72420638,0.00056164,120]
[355713085,1741495852331,-944.84,0.00056164,120]
[355713086,1741495852340,-500.0,0.00056164,120]
[355713087,1741495852350,-500.0,0.00056164,120]
[355713088,1741495852359,-500.0,0.00056164,120]
[355713089,1741495852370,-705.23,0.00056164,120]
[355713090,1741495852380,-274.43185506,0.00056164,120]
[355713091,1741495852389,-500.0,0.00056164,120]
[355713092,1741495852399,-500.0,0.00056164,120]
[355713093,1741495852408,-1651.32,0.00056164,120]
[355713094,1741495852418,-500.0,0.00056164,120]
[355713095,1741495852427,-830.43,0.00056164,120]
[355713096,1741495852436,-500.0,0.00056164,120]
[355713097,1741495852446,-151.22794805,0.00056164,120]
[355713098,1741495852455,-5932.19,0.00056164,7]
[355713099,1741495852465,-500.0,0.00056164,120]
[355713100,1741495852475,-5676.58,0.00056164,120]
[355713101,1741495852485,-500.0,0.00056164,120]
[355713102,1741495852494,-1010.55,0.00056164,120]
[355713103,1741495852504,-2113.03,0.00056164,120]
[355713104,1741495852514,-500.0,0.00056164,120]
[355713105,1741495852523,-500.0,0.00056164,120]
[355713106,1741495852532,-500.0,0.00056164,120]
[355713107,1741495852542,-276.80211043,0.00056164,120]
[355713108,1741495852552,-500.0,0.00056164,2]
[355713109,1741495852562,-500.0,0.00056164,120]
[355713110,1741495852573,-500.0,0.00056164,120]
[355713111,1741495852583,-500.0,0.00056164,2]
[355713112,1741495852592,-500.0,0.00056164,120]
[355713113,1741495852602,-500.0,0.00056164,120]
[355713114,1741495852611,-500.0,0.00056164,120]
[355713115,1741495852621,-1500.0,0.00056164,120]
[355713116,1741495852631,-200.0,0.00056274,120]
[355713117,1741495852640,-154.86,0.000563,57]
[355713118,1741495852650,-154.86,0.000563,57]
[355713119,1741495852659,-154.86,0.000563,57]
[355713120,1741495852668,-154.86,0.000563,57]
[355713121,1741495852679,-200.0,0.00056404,120]
[355713122,1741495852689,-700.0,0.00056437,120]
[355713123,1741495852698,-944.84,0.00056438,120]
[355713124,1741495852707,-500.0,0.00056438,120]
[355713125,1741495852717,-500.0,0.00056438,120]
[355713126,1741495852726,-500.0,0.00056438,120]
[355713127,1741495852736,-705.23,0.00056438,120]
[355713128,1741495852745,-500.0,0.00056438,120]
[355713129,1741495852756,-500.0,0.00056438,120]
[355713130,1741495852765,-1651.32,0.00056438,120]
[355713131,1741495852775,-531.66039807,0.00056438,120]
[355713132,1741495852784,-830.43,0.00056438,120]
[355713133,1741495852793,-500.0,0.00056438,120]
[355713134,1741495852803,-5932.19,0.00056438,7]
[355713135,1741495852813,-500.0,0.00056438,120]
[355713136,1741495852823,-5676.58,0.00056438,120]
[355713137,1741495852833,-500.0,0.00056438,120]
[355713138,1741495852843,-1010.55,0.00056438,120]
[355713139,1741495852853,-2113.03,0.00056438,120]
[355713140,1741495852863,-485.35636984,0.00056438,120]
[355713141,1741495852873,-500.0,0.00056438,120]
[355713142,1741495852883,-500.0,0.00056438,120]
[355713143,1741495852893,-500.0,0.00056438,2]
[355713144,1741495852903,-151.73211396,0.00056438,120]
[355713145,1741495852912,-500.0,0.00056438,120]
[355713146,1741495852923,-500.0,0.00056438,2]
[355713147,1741495852933,-500.0,0.00056438,120]
[355713148,1741495852943,-268.39341601,0.00056438,120]
[355713149,1741495852953,-500.0,0.00056438,120]
[355713150,1741495852963,-1500.0,0.00056438,120]
[355713151,1741495852973,-500.0,0.00056459,120]
[355713152,1741495852983,-700.0,0.00056462,120]
[355713153,1741495852992,-1043.19672898,0.00056498,78]
[355713154,1741495853002,-500.0,0.00056534,120]
[355713155,1741495853011,-2036.0,0.000567,65]
[355713156,1741495853021,-944.84,0.00056712,120]
[355713157,1741495853032,-500.0,0.00056712,120]
[355713158,1741495853042,-500.0,0.00056712,120]
[355713159,1741495853052,-500.0,0.00056712,120]
[355713160,1741495853061,-705.23,0.00056712,120]
[355713161,1741495853070,-500.0,0.00056712,120]
[355713162,1741495853081,-157.98951824,0.00056712,120]
[355713163,1741495853091,-1651.32,0.00056712,120]
[355713164,1741495853101,-830.43,0.00056712,120]
[355713165,1741495853110,-500.0,0.00056712,120]
[355713166,1741495853120,-5932.19,0.00056712,7]
[355713167,1741495853130,-401.68711607,0.00056712,120]
[355713168,1741495853140,-5676.58,0.00056712,120]
[355713169,1741495853150,-500.0,0.00056712,120]
[355713170,1741495853160,-1010.55,0.00056712,120]
[355713171,1741495853170,-2113.03,0.00056712,120]
[355713172,1741495853180,-500.0,0.00056712,120]
[355713173,1741495853190,-500.0,0.00056712,120]
[355713174,1741495853204,-526.87836507,0.00056712,2]
[355713175,1741495853215,-500.0,0.00056712,120]
[355713176,1741495853225,-169.15641974,0.00056712,2]
[355713177,1741495853236,-248.44321556,0.00056712,120]
[355713178,1741495853247,-500.0,0.00056712,120]
[355713179,1741495853257,-1500.0,0.00056712,120]
[355713180,1741495853267,-200.0,0.00056736,120]
[355713181,1741495853349,-500.0,0.00056746,120]
[355713182,1741495853362,-324.2,0.00056748,30]
[355713183,1741495853372,-500.0,0.00056753,120]
[355713184,1741495853381,-700.0,0.00056769,120]
[355713185,1741495853391,-1000.0,0.00056799,120]
[355713186,1741495853401,-607344.47308362,0.000568,120]
[355713187,1741495853411,-523.67334036,0.00056805,120]
[355713188,1741495853421,-200.0,0.00056828,120]
[355713189,1741495853430,-764.45061803,0.00056927,120]
[355713190,1741495853440,-944.84,0.00056986,120]
[355713191,1741495853449,-500.0,0.00056986,120]
[355713192,1741495853459,-500.0,0.00056986,120]
[355713193,1741495853469,-500.0,0.00056986,120]
[355713194,1741495853479,-705.23,0.00056986,120]
[355713195,1741495853489,-500.0,0.00056986,120]
[355713196,1741495853498,-1651.32,0.00056986,120]
[355713197,1741495853508,-830.43,0.00056986,120]
[355713198,1741495853518,-500.68702469,0.00056986,120]
[355713199,1741495853528,-5932.19,0.00056986,7]
[355713200,1741495853538,-5676.58,0.00056986,120]
[355713201,1741495853548,-500.0,0.00056986,120]
[355713202,1741495853558,-1010.55,0.00056986,120]
[355713203,1741495853567,-2113.03,0.00056986,120]
[355713204,1741495853577,-500.0,0.00056986,120]
[355713205,1741495853587,-500.0,0.00056986,120]
[355713206,1741495853596,-500.0,0.00056986,120]
[355713207,1741495853606,-500.0,0.00056986,120]
[355713208,1741495853615,-1500.0,0.00056986,120]
[355713209,1741495853626,-1876.95472869,0.00057,120]
[355713210,1741495853636,-2250.0,0.00057,120]
[355713211,1741495853645,-10000.0,0.00057,120]
[355713212,1741495853655,-10000.0,0.00057,30]
[355713213,1741495853665,-10000.0,0.00057,30]
[355713214,1741495853674,-300.0,0.00057,31]
[355713215,1741495853683,-200.0,0.00057032,120]
[355713216,1741495853692,-500.0,0.00057082,120]
[355713217,1741495853702,-450.0,0.00057192,15]
[355713218,1741495853712,-200.0,0.00057252,120]
[355713219,1741495853721,-944.84,0.0005726,120]
[355713220,1741495853731,-500.0,0.0005726,120]
[355713221,1741495853740,-500.0,0.0005726,120]
[355713222,1741495853750,-500.0,0.0005726,120]
[355713223,1741495853760,-705.23,0.0005726,120]
[355713224,1741495853770,-500.0,0.0005726,120]
[355713225,1741495853780,-1651.32,0.0005726,120]
[355713226,1741495853790,-830.43,0.0005726,120]
[355713227,1741495853799,-5932.19,0.0005726,7]
[355713228,1741495853809,-5676.58,0.0005726,120]
[355713229,1741495853819,-500.0,0.0005726,120]
[355713230,1741495853829,-1010.55,0.0005726,120]
[355713231,1741495853839,-2113.03,0.0005726,120]
[355713232,1741495853848,-500.0,0.0005726,120]
[355713233,1741495853858,-500.0,0.0005726,120]
[355713234,1741495853868,-500.0,0.0005726,120]
[355713235,1741495853878,-619.9175495,0.0005726,120]
[355713236,1741495853888,-1500.0,0.0005726,120]
[355713237,1741495853898,-200.0,0.00057348,120]
[355713238,1741495853908,-200.0,0.00057362,120]
[355713239,1741495853918,-50036.1063,0.000574,30]
[355713240,1741495853927,-200.0,0.00057411,120]
[355713241,1741495853936,-157.0,0.000575,120]
[355713242,1741495853946,-944.84,0.00057534,120]
[355713243,1741495853955,-500.0,0.00057534,120]
[355713244,1741495853965,-500.0,0.00057534,120]
[355713245,1741495853977,-497.13504841,0.00057534,120]
[355713246,1741495853986,-705.23,0.00057534,120]
[355713247,1741495853996,-500.0,0.00057534,120]
[355713248,1741495854006,-1651.32,0.00057534,120]
[355713249,1741495854016,-830.43,0.00057534,120]
[355713250,1741495854027,-5932.19,0.00057534,7]
[355713251,1741495854037,-5676.58,0.00057534,120]
[355713252,1741495854047,-500.0,0.00057534,120]
[355713253,1741495854056,-1010.55,0.00057534,120]
[355713254,1741495854066,-2113.03,0.00057534,120]
[355713255,1741495854077,-500.0,0.00057534,120]
[355713256,1741495854090,-500.0,0.00057534,120]
[355713257,1741495854100,-500.0,0.00057534,120]
[355713258,1741495854109,-1500.0,0.00057534,120]
[355713259,1741495854121,-500.0,0.0005763,120]
[355713260,1741495854131,-2410.72,0.000577,30]
[355713261,1741495854140,-944.84,0.00057808,120]
[355713262,1741495854150,-500.0,0.00057808,120]
[355713263,1741495854160,-500.0,0.00057808,120]
[355713264,1741495854169,-705.23,0.00057808,120]
[355713265,1741495854185,-500.0,0.00057808,120]
[355713266,1741495854195,-1651.32,0.00057808,120]
[355713267,1741495854207,-830.43,0.00057808,120]
[355713268,1741495854217,-5932.19,0.00057808,7]
[355713269,1741495854226,-5676.58,0.00057808,120]
[355713270,1741495854235,-500.0,0.00057808,120]
[355713271,1741495854245,-1010.55,0.00057808,120]
[355713272,1741495854254,-2113.03,0.00057808,120]
[355713273,1741495854264,-500.0,0.00057808,120]
[355713274,1741495854276,-480.7022225,0.00057808,120]
[355713275,1741495854285,-500.0,0.00057808,120]
[355713276,1741495854294,-1500.0,0.00057808,120]
[355713277,1741495854307,-200.0,0.00057873,120]
[355713278,1741495854317,-10000.0,0.00058,30]
[355713279,1741495854326,-409.53,0.00058,30]
[355713280,1741495854336,-1296.0,0.00058,120]
[355713281,1741495854345,-814.0,0.00058,120]
[355713282,1741495854355,-944.84,0.00058082,120]
[355713283,1741495854365,-500.0,0.00058082,120]
[355713284,1741495854375,-500.0,0.00058082,120]
[355713285,1741495854385,-705.23,0.00058082,120]
[355713286,1741495854395,-500.0,0.00058082,120]
[355713287,1741495854404,-1651.32,0.00058082,120]
[355713288,1741495854415,-830.43,0.00058082,120]
[355713289,1741495854426,-5932.19,0.00058082,7]
[355713290,1741495854436,-5676.58,0.00058082,120]
[355713291,1741495854446,-500.0,0.00058082,120]
[355713292,1741495854455,-1010.55,0.00058082,120]
[355713293,1741495854465,-2113.03,0.00058082,120]
[355713294,1741495854474,-528.59165756,0.00058082,120]